fUST/lending_fUST_20250725
["ID","MTS","AMOUNT","RATE_DAILY","PERIOD"]
[374699341,1753419037375,-900.1571553,0.00016869,2]
[374699344,1753419037387,-922.15248129,0.00016869,2]
[374699349,1753419037903,-422.11020314,0.00016869,2]
[374699350,1753419037962,-30758.96885056,0.00016869,2]
[374699351,1753419037972,-460.0,0.0001687,2]
[374699352,1753419037982,-460.0,0.0001687,2]
[374699353,1753419037992,-460.0,0.0001687,2]
[374699354,1753419038002,-458.59210166,0.0001687,2]
[374699355,1753419038011,-460.0,0.0001687,2]
[374699356,1753419038023,-185.84786138,0.0001687,2]
[374699357,1753419038032,-460.0,0.0001687,2]
[374699358,1753419038041,-460.0,0.0001687,2]
[374699359,1753419038050,-460.0,0.0001687,2]
[374699360,1753419038061,-460.0,0.0001687,2]
[374699361,1753419038072,-460.0,0.0001687,2]
[374699362,1753419038081,-1173.27,0.0001687,2]
[374699363,1753419038091,-460.0,0.0001687,2]
[374699364,1753419038101,-254.8702905,0.0001687,2]
[374699365,1753419038111,-777.26,0.00016871,3]
[374699366,1753419038121,-388.63,0.00016871,3]
[374699367,1753419038130,-194.31,0.00016871,3]
[374699368,1753419038140,-582.96,0.00016871,3]
[374699369,1753419038149,-460.0,0.00016874,2]
[374699370,1753419038158,-460.0,0.00016874,2]
[374699371,1753419038168,-461.59852186,0.00016874,2]
[374699372,1753419038178,-461.17000004,0.00016874,2]
[374699373,1753419038188,-460.0,0.00016874,2]
[374699374,1753419038197,-460.0,0.00016874,2]
[374699375,1753419038207,-460.0,0.00016874,2]
[374699376,1753419038216,-460.0,0.00016874,2]
[374699377,1753419038226,-460.64368981,0.00016874,2]
[374699378,1753419038236,-460.0,0.00016874,2]
[374699379,1753419038245,-1256.39,0.00016874,2]
[374699380,1753419038255,-460.0,0.00016874,2]
[374699381,1753419038265,-460.30608515,0.00016874,2]
[374699382,1753419038274,-460.0,0.00016874,2]
[374699383,1753419038284,-460.0,0.00016874,2]
[374699384,1753419038293,-460.0,0.00016874,2]
[374699385,1753419038303,-460.0,0.00016874,2]
[374699386,1753419038312,-461.70604712,0.00016874,2]
[374699387,1753419038321,-460.0,0.00016874,2]
[374699388,1753419038331,-460.0,0.00016874,2]
[374699389,1753419038340,-460.0,0.00016874,2]
[374699390,1753419038350,-460.0,0.00016874,2]
[374699391,1753419038359,-460.0,0.00016874,2]
[374699392,1753419038368,-2176.29,0.00016874,2]
[374699393,1753419038378,-1047.21,0.00016874,2]
[374699394,1753419038387,-503.76738733,0.00016874,2]
[374699395,1753419038396,-460.0,0.00016874,2]
[374699396,1753419038406,-460.0,0.00016874,2]
[374699397,1753419038415,-873.75,0.00016874,2]
[374699398,1753419038425,-460.0,0.00016874,2]
[374699399,1753419038435,-977.93,0.00016874,2]
[374699400,1753419038444,-460.0,0.00016874,2]
[374699401,1753419038453,-460.0,0.00016874,2]
[374699402,1753419038463,-460.0,0.00016874,2]
[374699403,1753419038473,-460.0,0.00016874,2]
[374699404,1753419038482,-460.0,0.00016874,2]
[374699405,1753419038492,-460.0,0.00016874,2]
[374699406,1753419038501,-460.0,0.00016874,2]
[374699407,1753419038511,-460.0,0.00016874,2]
[374699408,1753419038523,-460.0,0.00016874,2]
[374699409,1753419038532,-460.0,0.00016874,2]
[374699410,1753419038541,-462.26392948,0.00016874,2]
[374699411,1753419038551,-460.0,0.00016874,2]
[374699412,1753419038561,-460.0,0.00016874,2]
[374699413,1753419038571,-460.0,0.00016874,2]
[374699414,1753419038580,-460.0,0.00016874,2]
[374699415,1753419038589,-460.0,0.00016876,2]
[374699416,1753419038602,-460.0,0.00016876,2]
[374699417,1753419038612,-460.0,0.00016876,2]
[374699418,1753419038622,-460.0,0.00016876,2]
[374699419,1753419038632,-460.0,0.00016876,2]
[374699420,1753419038642,-460.0,0.00016876,2]
[374699421,1753419038652,-460.0,0.00016876,2]
[374699422,1753419038665,-460.0,0.00016876,2]
[374699423,1753419038675,-460.0,0.00016876,2]
[374699424,1753419038686,-178.71902499,0.00016876,2]
[374699425,1753419038696,-460.0,0.00016876,2]
[374699426,1753419038706,-460.0,0.00016876,2]
[374699427,1753419038716,-572.88,0.00016876,2]
[374699428,1753419038726,-707.89,0.00016876,2]
[374699429,1753419038736,-460.0,0.00016876,2]
[374699430,1753419038750,-460.0,0.00016876,2]
[374699431,1753419038760,-461.65607098,0.00016876,2]
[374699432,1753419038772,-278.69422962,0.00016876,2]
[374699433,1753419038782,-460.0,0.00016876,2]
[374699434,1753419038792,-460.0,0.00016876,2]
[374699435,1753419038801,-461.44,0.00016876,2]
[374699436,1753419038811,-460.0,0.00016876,2]
[374699437,1753419038820,-460.0,0.00016876,2]
[374699438,1753419038831,-460.0,0.00016876,2]
[374699439,1753419038840,-463.81480983,0.00016876,2]
[374699440,1753419038849,-460.0,0.00016876,2]
[374699441,1753419038858,-460.0,0.00016876,2]
[374699442,1753419038868,-447.33400818,0.00016877,2]
[374699443,1753419038877,-515.04491027,0.00016877,2]
[374699444,1753419038886,-460.0,0.00016877,2]
[374699445,1753419038896,-460.0,0.00016877,2]
[374699446,1753419038906,-486.46,0.00016877,2]
[374699447,1753419038916,-460.0,0.00016877,2]
[374699448,1753419038926,-460.0,0.00016877,2]
[374699449,1753419038935,-460.0,0.00016877,2]
[374699450,1753419038945,-460.0,0.00016877,2]
[374699451,1753419038954,-460.0,0.00016877,2]
[374699452,1753419038963,-460.0,0.00016877,2]
[374699453,1753419038972,-460.0,0.00016877,2]
[374699454,1753419038982,-460.0,0.00016878,2]
[374699455,1753419038991,-460.0,0.00016878,2]
[374699456,1753419039001,-460.0,0.00016878,2]
[374699457,1753419039011,-160.0,0.00016879,2]
[374699458,1753419039023,-460.0,0.00016879,2]
[374699459,1753419039032,-460.0,0.00016879,2]
[374699460,1753419039042,-570.30389638,0.00016879,2]
[374699461,1753419039052,-460.0,0.00016879,2]
[374699462,1753419039061,-460.0,0.00016879,2]
[374699463,1753419039072,-460.0,0.00016879,2]
[374699464,1753419039082,-460.0,0.00016879,2]
[374699465,1753419039091,-460.0,0.00016879,2]
[374699466,1753419039101,-477.43,0.00016879,2]
[374699467,1753419039112,-460.0,0.00016879,2]
[374699468,1753419039121,-539.26,0.00016879,2]
[374699469,1753419039131,-460.0,0.00016879,2]
[374699470,1753419039141,-460.0,0.00016879,2]
[374699471,1753419039151,-3233.96,0.00016879,2]
[374699472,1753419039160,-1176.72,0.00016879,2]
[374699473,1753419039170,-460.0,0.00016879,2]
[374699474,1753419039179,-460.0,0.00016879,2]
[374699475,1753419039189,-910.0,0.00016879,2]
[374699476,1753419039198,-460.0,0.0001688,2]
[374699477,1753419039208,-460.0,0.0001688,2]
[374699478,1753419039218,-460.0,0.0001688,2]
[374699479,1753419039227,-460.0,0.0001688,2]
[374699480,1753419039237,-334095.63976606,0.00016881,2]
[374699481,1753419039247,-460.0,0.00016898,2]
[374699482,1753419039257,-460.79981069,0.00016898,2]
[374699483,1753419039268,-460.0,0.00016898,2]
[374699484,1753419039278,-460.0,0.00016898,2]
[374699486,1753419039414,-460.0,0.00016898,2]
[374699487,1753419039424,-460.0,0.00016898,2]
[374699488,1753419039434,-1246.53,0.00016898,2]
[374699490,1753419039444,-824.42,0.00016898,2]
[374699491,1753419039453,-1706.44,0.00016898,2]
[374699492,1753419039463,-460.0,0.00016898,2]
[374699493,1753419039473,-460.0,0.00016898,2]
[374699494,1753419039483,-477.56,0.00016898,2]
[374699495,1753419039492,-580.03,0.00016898,2]
[374699496,1753419039503,-5542.56428396,0.000169,2]
[374699497,1753419039512,-460.0,0.00016978,2]
[374699498,1753419039523,-214.53898099,0.00016978,2]
[374699500,1753419039532,-460.0,0.00016978,2]
[374699501,1753419039542,-460.0,0.00016978,2]
[374699503,1753419039551,-460.0,0.00016978,2]
[374699505,1753419039561,-460.0,0.00016978,2]
[374699507,1753419039571,-460.0,0.00016978,2]
[374699509,1753419039581,-460.0,0.00016978,2]
[374699511,1753419039591,-460.0,0.00016978,2]
[374699513,1753419039600,-463.20353164,0.00016978,2]
[374699515,1753419039609,-460.0,0.00016978,2]
[374699516,1753419039618,-412.71720283,0.00016978,2]
[374699518,1753419039628,-245.50016698,0.00016978,2]
[374699520,1753419039638,-460.0,0.00016978,2]
[374699523,1753419039647,-460.0,0.00016978,2]
[374699525,1753419039657,-460.0,0.00016978,2]
[374699527,1753419039667,-556.34823857,0.00016978,2]
[374699528,1753419039677,-460.0,0.00016978,2]
[374699531,1753419039687,-460.39470653,0.00016978,2]
[374699532,1753419039697,-460.0,0.00016978,2]
[374699534,1753419039706,-460.0,0.00016978,2]
[374699537,1753419039716,-460.0,0.00016978,2]
[374699538,1753419039726,-460.0,0.00016978,2]
[374699541,1753419039736,-460.0,0.00016978,2]
[374699543,1753419039748,-460.0,0.00016978,2]
[374699544,1753419039757,-460.0,0.00016978,2]
[374699547,1753419039768,-460.0,0.00016978,2]
[374699548,1753419039779,-460.0,0.00016978,2]
[374699551,1753419039790,-460.0,0.00016978,2]
[374699552,1753419039802,-460.0,0.00016978,2]
[374699554,1753419039811,-460.0,0.00016978,2]
[374699556,1753419039821,-460.0,0.00016978,2]
[374699558,1753419039834,-460.0,0.00016978,2]
[374699560,1753419039844,-460.0,0.00016978,2]
[374699561,1753419039854,-460.0,0.00016978,2]
[374699563,1753419039864,-395.47935336,0.00016978,2]
[374699565,1753419039873,-159.46842286,0.00016978,2]
[374699567,1753419039883,-460.0,0.00016978,2]
[374699569,1753419039893,-460.0,0.00016978,2]
[374699570,1753419039902,-460.0,0.00016978,2]
[374699572,1753419039912,-466.22532893,0.00016978,2]
[374699573,1753419039922,-460.0,0.00016978,2]
[374699574,1753419039931,-460.0,0.00016978,2]
[374699575,1753419039941,-460.0,0.00016978,2]
[374699577,1753419039951,-460.0,0.00016978,2]
[374699578,1753419039961,-460.0,0.00016978,2]
[374699580,1753419039971,-460.0,0.00016978,2]
[374699581,1753419039981,-460.0,0.00016978,2]
[374699582,1753419039990,-460.0,0.00016978,2]
[374699583,1753419040002,-460.0,0.00016978,2]
[374699584,1753419040011,-460.0,0.00016978,2]
[374699585,1753419040024,-460.0,0.00016978,2]
[374699586,1753419040035,-460.0,0.00016978,2]
[374699587,1753419040045,-460.0,0.00016978,2]
[374699588,1753419040055,-460.0,0.00016978,2]
[374699589,1753419040065,-460.0,0.00016978,2]
[374699590,1753419040075,-460.0,0.00016978,2]
[374699591,1753419040085,-460.0,0.00016978,2]
[374699592,1753419040098,-461.50260577,0.00016978,2]
[374699593,1753419040108,-373.88294649,0.00016978,2]
[374699594,1753419040118,-460.0,0.00016978,2]
[374699595,1753419040127,-460.0,0.00016978,2]
[374699596,1753419040136,-460.0,0.00016978,2]
[374699597,1753419040146,-460.0,0.00016978,2]
[374699598,1753419040155,-460.0,0.00016978,2]
[374699599,1753419040165,-460.0,0.00016978,2]
[374699600,1753419040175,-460.0,0.00016978,2]
[374699601,1753419040184,-460.0,0.00016978,2]
[374699602,1753419040194,-467.13,0.00016978,2]
[374699603,1753419040204,-460.0,0.00016978,2]
[374699604,1753419040214,-460.0,0.00016978,2]
[374699605,1753419040223,-460.0,0.00016978,2]
[374699606,1753419040233,-460.0,0.00016978,2]
[374699607,1753419040243,-463.41410887,0.00016978,2]
[374699608,1753419040253,-460.0,0.00016978,2]
[374699609,1753419040262,-460.0,0.00016978,2]
[374699610,1753419040273,-460.0,0.00016978,2]
[374699611,1753419040283,-460.0,0.00016978,2]
[374699612,1753419040293,-462.8291943,0.00016978,2]
[374699614,1753419040303,-460.0,0.00016978,2]
[374699616,1753419040312,-474.79582029,0.00016978,2]
[374699618,1753419040322,-349.36553616,0.00016978,2]
[374699619,1753419040332,-460.0,0.00016978,2]
[374699621,1753419040341,-460.0,0.00016978,2]
[374699622,1753419040351,-460.0,0.00016978,2]
[374699623,1753419040361,-460.0,0.00016978,2]
[374699624,1753419040370,-460.0,0.00016978,2]
[374699625,1753419040380,-460.0,0.00016978,2]
[374699626,1753419040390,-461.97597654,0.00016978,2]
[374699627,1753419040400,-460.0,0.00016978,2]
[374699628,1753419040410,-460.0,0.00016978,2]
[374699629,1753419040419,-460.0,0.00016978,2]
[374699630,1753419040429,-460.0,0.00016978,2]
[374699631,1753419040439,-460.0,0.00016978,2]
[374699633,1753419040449,-460.0,0.00016978,2]
[374699635,1753419040459,-460.0,0.00016978,2]
[374699637,1753419040468,-466.05,0.00016978,2]
[374699639,1753419040478,-460.0,0.00016978,2]
[374699641,1753419040488,-460.0,0.00016978,2]
[374699643,1753419040499,-460.0,0.00016978,2]
[374699645,1753419040508,-460.0,0.00016978,2]
[374699647,1753419040519,-460.0,0.00016978,2]
[374699649,1753419040529,-560.33,0.00016978,2]
[374699651,1753419040539,-460.0,0.00016978,2]
[374699653,1753419040549,-460.0,0.00016978,2]
[374699655,1753419040559,-460.0,0.00016978,2]
[374699657,1753419040568,-460.0,0.00016978,2]
[374699659,1753419040578,-460.0,0.00016978,2]
[374699661,1753419040588,-460.0,0.00016978,2]
[374699663,1753419040598,-460.0,0.00016978,2]
[374699665,1753419040607,-464.01772172,0.00016978,2]
[374699667,1753419040617,-591.04,0.00016978,2]
[374699668,1753419040627,-460.0,0.00016978,2]
[374699669,1753419040637,-460.0,0.00016978,2]
[374699670,1753419040647,-460.0,0.00016978,2]
[374699671,1753419040659,-460.0,0.00016978,2]
[374699673,1753419040668,-460.0,0.00016978,2]
[374699675,1753419040677,-460.0,0.00016978,2]
[374699677,1753419040690,-460.0,0.00016978,2]
[374699678,1753419040699,-235.0653405,0.00016978,2]
[374699679,1753419040709,-460.0,0.00016978,2]
[374699680,1753419040718,-460.0,0.00016978,2]
[374699681,1753419040729,-460.0,0.00016978,2]
[374699682,1753419040739,-460.0,0.00016978,2]
[374699683,1753419040750,-460.0,0.00016978,2]
[374699684,1753419040760,-460.0,0.00016978,2]
[374699685,1753419040772,-460.71485847,0.00016978,2]
[374699686,1753419040782,-460.0,0.00016978,2]
[374699687,1753419040791,-460.0,0.00016978,2]
[374699688,1753419040802,-460.0,0.00016978,2]
[374699689,1753419040812,-537.65,0.00016978,2]
[374699690,1753419040822,-460.0,0.00016978,2]
[374699691,1753419040833,-380.56369671,0.00016978,2]
[374699692,1753419040843,-483.29,0.00016978,2]
[374699694,1753419040853,-460.0,0.00016978,2]
[374699696,1753419040862,-1668.33,0.00016978,2]
[374699698,1753419040872,-461.42389967,0.00016978,2]
[374699700,1753419040881,-460.0,0.00016978,2]
[374699701,1753419040892,-227.56542686,0.00016978,2]
[374699702,1753419040903,-460.0,0.00016978,2]
[374699703,1753419040913,-460.0,0.00016978,2]
[374699704,1753419040922,-524.18365397,0.00016978,2]
[374699705,1753419040931,-460.0,0.00016978,2]
[374699706,1753419040941,-460.0,0.00016978,2]
[374699707,1753419040951,-460.0,0.00016978,2]
[374699708,1753419040960,-1140.5,0.00016978,2]
[374699709,1753419040970,-460.0,0.00016978,2]
[374699710,1753419040980,-500.0,0.00016978,2]
[374699711,1753419040989,-460.0,0.00016978,2]
[374699712,1753419040999,-460.0,0.00016978,2]
[374699713,1753419041009,-460.0,0.00016978,2]
[374699714,1753419041022,-460.0,0.00016978,2]
[374699715,1753419041032,-460.0,0.00016978,2]
[374699716,1753419041042,-460.0,0.00016978,2]
[374699717,1753419041052,-460.0,0.00016978,2]
[374699718,1753419041062,-460.0,0.00016978,2]
[374699720,1753419041072,-460.0,0.00016978,2]
[374699722,1753419041083,-460.0,0.00016978,2]
[374699724,1753419041094,-520.54,0.00016978,2]
[374699725,1753419041104,-381.64297915,0.00016978,2]
[374699727,1753419041114,-460.0,0.00016978,2]
[374699729,1753419041124,-500.0,0.00016982,2]
[374699731,1753419041134,-466.82720813,0.00016985,2]
[374699732,1753419041144,-460.0,0.00016985,2]
[374699733,1753419041155,-460.0,0.00016985,2]
[374699735,1753419041165,-460.0,0.00016985,2]
[374699736,1753419041175,-460.0,0.00016985,2]
[374699737,1753419041185,-460.0,0.00016985,2]
[374699738,1753419041195,-460.0,0.00016985,2]
[374699739,1753419041205,-460.0,0.00016985,2]
[374699740,1753419041215,-460.0,0.00016985,2]
[374699741,1753419041225,-465.27479955,0.00016985,2]
[374699742,1753419041234,-460.0,0.00016985,2]
[374699743,1753419041244,-460.0,0.00016985,2]
[374699744,1753419041253,-460.70187515,0.00016985,2]
[374699745,1753419041263,-460.0,0.00016985,2]
[374699746,1753419041276,-460.0,0.00016985,2]
[374699747,1753419041285,-518.22,0.00016985,2]
[374699748,1753419041295,-460.0,0.00016985,2]
[374699749,1753419041305,-460.0,0.00016985,2]
[374699750,1753419041314,-460.0,0.00016985,2]
[374699751,1753419041324,-460.0,0.00016985,2]
[374699752,1753419041333,-460.0,0.00016985,2]
[374699753,1753419041343,-460.0,0.00016985,2]
[374699754,1753419041352,-460.0,0.00016985,2]
[374699755,1753419041362,-460.55234967,0.00016985,2]
[374699756,1753419041372,-460.0,0.00016985,2]
[374699757,1753419041381,-460.0,0.00016985,2]
[374699758,1753419041390,-460.0,0.00016986,2]
[374699759,1753419041400,-460.0,0.00016986,2]
[374699760,1753419041409,-460.0,0.00016986,2]
[374699761,1753419041419,-605.21,0.00016986,2]
[374699762,1753419041428,-460.0,0.00016986,2]
[374699763,1753419041437,-460.0,0.00016986,2]
[374699764,1753419041447,-460.0,0.00016986,2]
[374699765,1753419041456,-460.0,0.00016986,2]
[374699766,1753419041466,-460.0,0.00016986,2]
[374699767,1753419041475,-460.0,0.00016986,2]
[374699768,1753419041485,-460.0,0.00016986,2]
[374699769,1753419041495,-460.0,0.00017082,2]
[374699770,1753419041504,-460.0,0.00017082,2]
[374699771,1753419041516,-460.0,0.00017082,2]
[374699772,1753419041526,-460.0,0.00017082,2]
[374699773,1753419041535,-460.0,0.00017082,2]
[374699774,1753419041544,-460.0,0.00017082,2]
[374699775,1753419041554,-460.0,0.00017082,2]
[374699776,1753419041563,-460.0,0.00017082,2]
[374699777,1753419041572,-460.0,0.00017082,2]
[374699778,1753419041582,-460.0,0.00017082,2]
[374699779,1753419041593,-460.0,0.00017082,2]
[374699780,1753419041602,-460.0,0.00017087,2]
[374699781,1753419041612,-579.29204909,0.00017087,2]
[374699782,1753419041621,-500.0,0.00017087,2]
[374699783,1753419041630,-460.0,0.00017087,2]
[374699784,1753419041639,-460.0,0.00017087,2]
[374699785,1753419041650,-460.0,0.00017087,2]
[374699786,1753419041659,-460.0,0.00017087,2]
[374699787,1753419041668,-460.0,0.00017087,2]
[374699788,1753419041678,-460.0,0.00017087,2]
[374699789,1753419041687,-460.0,0.00017087,2]
[374699790,1753419041697,-460.0,0.00017087,2]
[374699791,1753419041707,-460.0,0.00017087,2]
[374699792,1753419041716,-460.0,0.00017087,2]
[374699793,1753419041725,-460.0,0.00017087,2]
[374699794,1753419041735,-469.06962167,0.00017087,2]
[374699795,1753419041747,-460.0,0.00017087,2]
[374699796,1753419041756,-460.0,0.00017087,2]
[374699797,1753419041768,-463.1120476,0.00017087,2]
[374699798,1753419041777,-478.7636025,0.00017087,2]
[374699799,1753419041788,-422.51889345,0.00017087,2]
[374699800,1753419041798,-460.0,0.00017087,2]
[374699801,1753419041807,-460.0,0.00017087,2]
[374699802,1753419041816,-460.0,0.00017087,2]
[374699803,1753419041828,-460.0,0.00017087,2]
[374699804,1753419041837,-460.92,0.00017087,2]
[374699805,1753419041846,-460.0,0.00017143,2]
[374699806,1753419041856,-460.0,0.00017143,2]
[374699807,1753419041865,-460.0,0.00017143,2]
[374699808,1753419041875,-460.0,0.00017144,2]
[374699809,1753419041884,-460.0,0.00017144,2]
[374699810,1753419041894,-460.0,0.00017144,2]
[374699811,1753419041903,-318.5055241,0.00017144,2]
[374699812,1753419041941,-460.0,0.00017144,2]
[374699813,1753419041951,-460.0,0.00017144,2]
[374699814,1753419041960,-1173.27,0.00017144,2]
[374699815,1753419041969,-254.22,0.00017144,2]
[374699816,1753419041978,-275.01924584,0.00017148,2]
[374699817,1753419041988,-460.0,0.00017148,2]
[374699818,1753419041997,-460.0,0.00017148,2]
[374699819,1753419042007,-460.0,0.00017148,2]
[374699820,1753419042017,-177.97290017,0.00017148,2]
[374699821,1753419042026,-1256.39,0.00017148,2]
[374699822,1753419042036,-460.0,0.00017148,2]
[374699823,1753419042045,-427.95473267,0.00017148,2]
[374699824,1753419042054,-460.0,0.00017148,2]
[374699825,1753419042063,-460.0,0.00017148,2]
[374699826,1753419042073,-460.0,0.00017148,2]
[374699827,1753419042082,-460.0,0.00017148,2]
[374699828,1753419042091,-2176.29,0.00017148,2]
[374699829,1753419042100,-1047.21,0.00017148,2]
[374699830,1753419042111,-460.0,0.00017148,2]
[374699831,1753419042119,-873.75,0.00017148,2]
[374699832,1753419042128,-460.0,0.00017148,2]
[374699833,1753419042138,-977.93,0.00017148,2]
[374699834,1753419042147,-460.0,0.00017148,2]
[374699835,1753419042157,-460.0,0.00017148,2]
[374699836,1753419042166,-460.0,0.00017148,2]
[374699837,1753419042175,-460.0,0.00017148,2]
[374699838,1753419042185,-460.0,0.00017148,2]
[374699839,1753419042194,-460.0,0.0001715,2]
[374699840,1753419042203,-460.0,0.0001715,2]
[374699841,1753419042213,-462.99013013,0.0001715,2]
[374699842,1753419042223,-460.0,0.0001715,2]
[374699843,1753419042232,-591.92,0.0001715,2]
[374699844,1753419042241,-707.89,0.0001715,2]
[374699845,1753419042250,-460.0,0.0001715,2]
[374699846,1753419042260,-460.0,0.0001715,2]
[374699847,1753419042271,-460.0,0.0001715,2]
[374699848,1753419042280,-460.0,0.00017151,2]
[374699849,1753419042290,-460.0,0.00017151,2]
[374699850,1753419042300,-486.46,0.00017151,2]
[374699851,1753419042310,-258.21,0.00017151,2]
[374699852,1753419042320,-460.0,0.00017151,2]
[374699853,1753419042329,-460.0,0.00017151,2]
[374699854,1753419042339,-460.0,0.00017151,2]
[374699855,1753419042349,-460.0,0.00017153,2]
[374699856,1753419042358,-460.0,0.00017153,2]
[374699857,1753419042368,-460.0,0.00017153,2]
[374699858,1753419042377,-460.0,0.00017153,2]
[374699859,1753419042397,-477.43,0.00017153,2]
[374699861,1753419042408,-539.26,0.00017153,2]
[374699863,1753419042418,-460.0,0.00017153,2]
[374699865,1753419042428,-460.0,0.00017153,2]
[374699867,1753419042438,-3233.96,0.00017153,2]
[374699869,1753419042448,-1176.72,0.00017153,2]
[374699871,1753419042458,-460.0,0.00017153,2]
[374699873,1753419042469,-460.0,0.00017153,2]
[374699875,1753419042479,-910.0,0.00017153,2]
[374699877,1753419042490,-460.0,0.00017154,2]
[374699880,1753419042501,-1246.53,0.00017172,2]
[374699882,1753419042511,-824.42,0.00017172,2]
[374699885,1753419042522,-1706.44,0.00017172,2]
[374699887,1753419042531,-460.0,0.00017172,2]
[374699890,1753419042541,-460.0,0.00017172,2]
[374699893,1753419042551,-477.56,0.00017172,2]
[374699896,1753419042561,-580.03,0.00017172,2]
[374699898,1753419042570,-264.0,0.00017231,2]
[374699900,1753419042579,-5542.56428394,0.00017245,2]
[374699902,1753419042589,-460.0,0.00017252,2]
[374699904,1753419042599,-233.54690599,0.00017252,2]
[374699907,1753419042608,-460.0,0.00017252,2]
[374699909,1753419042617,-460.0,0.00017252,2]
[374699911,1753419042626,-201.20633806,0.00017252,2]
[374699913,1753419042636,-460.0,0.00017252,2]
[374699915,1753419042646,-460.0,0.00017252,2]
[374699917,1753419042656,-460.0,0.00017252,2]
[374699919,1753419042665,-460.0,0.00017252,2]
[374699921,1753419042675,-460.0,0.00017252,2]
[374699923,1753419042685,-465.09424804,0.00017252,2]
[374699925,1753419042695,-462.87783646,0.00017252,2]
[374699927,1753419042704,-460.0,0.00017252,2]
[374699929,1753419042714,-462.4153484,0.00017252,2]
[374699931,1753419042723,-460.0,0.00017252,2]
[374699933,1753419042733,-460.0,0.00017252,2]
[374699935,1753419042743,-460.0,0.00017252,2]
[374699937,1753419042755,-375.90536632,0.00017252,2]
[374699939,1753419042765,-460.0,0.00017252,2]
[374699941,1753419042777,-461.04209964,0.00017252,2]
[374699943,1753419042788,-251.00143846,0.00017252,2]
[374699945,1753419042797,-460.0,0.00017252,2]
[374699948,1753419042807,-460.0,0.00017252,2]
[374699950,1753419042816,-310.6729483,0.00017252,2]
[374699952,1753419042827,-460.0,0.00017252,2]
[374699953,1753419042837,-325.61252337,0.00017252,2]
[374699956,1753419042846,-460.0,0.00017252,2]
[374699958,1753419042856,-460.0,0.00017252,2]
[374699960,1753419042865,-460.0,0.00017252,2]
[374699962,1753419042874,-460.0,0.00017252,2]
[374699963,1753419042883,-460.0,0.00017252,2]
[374699966,1753419042893,-244.04,0.00017252,2]
[374699968,1753419042903,-460.0,0.00017252,2]
[374699970,1753419042913,-460.0,0.00017252,2]
[374699972,1753419042922,-283.92,0.00017252,2]
[374699974,1753419042932,-460.0,0.00017252,2]
[374699976,1753419042941,-460.0,0.00017252,2]
[374699978,1753419042951,-466.05,0.00017252,2]
[374699980,1753419042960,-460.0,0.00017252,2]
[374699982,1753419042970,-460.0,0.00017252,2]
[374699984,1753419042980,-460.0,0.00017252,2]
[374699986,1753419042989,-460.0,0.00017252,2]
[374699988,1753419042998,-460.0,0.00017252,2]
[374699990,1753419043008,-460.0,0.00017252,2]